fUST/lending_fUST_20260625
["ID","MTS","AMOUNT","RATE_DAILY","PERIOD"]
[426427070,1782376287000,-1000.0,0.00097499,120]
[426427078,1782376287000,-1000.0,0.001,120]
[426427068,1782376287000,-6449.24460474,0.0009488,60]
[426427074,1782376287000,-489.98,0.00099394,120]
[426427072,1782376287000,-152.12492349,0.00098057,64]
[426427076,1782376287000,-839.145932,0.000999,120]
[426427075,1782376287000,-150.56994831,0.000999,120]
[426427073,1782376287000,-1000.0,0.0009863,2]
[426427079,1782376287000,-10999.999999,0.001,120]
[426427082,1782376287000,-11999.999089,0.001,120]
[426427077,1782376287000,-50000.0,0.001,120]
[426427066,1782376287000,-400.0,0.00094,120]
[426427115,1782376287000,-151.0,0.00107123,30]
[426427113,1782376287000,-247.2307789,0.00107123,30]
[426427139,1782376287000,-230.2189879,0.00107123,30]
[426427141,1782376287000,-327.2808408,0.00107123,30]
[426427136,1782376287000,-327.2808408,0.00107123,30]
[426427143,1782376287000,-327.2808408,0.00107123,30]
[426427146,1782376287000,-151.0,0.00107123,30]
[426427145,1782376287000,-327.2808408,0.00107123,30]
[426427144,1782376287000,-151.0,0.00107123,30]
[426427147,1782376287000,-338.10901,0.00107123,30]
[426427149,1782376287000,-327.2808408,0.00107945,30]
[426427160,1782376287000,-327.2808408,0.00107945,30]
[426427159,1782376287000,-327.2808408,0.00107945,30]
[426427150,1782376287000,-327.2808408,0.00107945,30]
[426427151,1782376287000,-458.4896001,0.00107945,30]
[426427152,1782376287000,-458.4896001,0.00107945,30]
[426427155,1782376287000,-327.2808408,0.00107945,30]
[426427156,1782376287000,-327.2808408,0.00107945,30]
[426427154,1782376287000,-484.0553256,0.00107945,30]
[426427158,1782376287000,-458.4896001,0.00107945,30]
[426427153,1782376287000,-327.2808408,0.00107945,30]
[426427157,1782376287000,-458.4896001,0.00107945,30]
[426427161,1782376287000,-458.4896001,0.00107945,30]
[426427162,1782376287000,-325.9736397,0.00107945,30]
[426427106,1782376287000,-151.0,0.00107123,120]
[426427138,1782376287000,-458.4896001,0.00107123,30]
[426427137,1782376287000,-151.0,0.00107123,30]
[426427148,1782376287000,-151.0,0.00107123,30]
[426427142,1782376287000,-151.0,0.00107123,30]
[426427109,1782376287000,-151.0,0.00107123,30]
[426427140,1782376287000,-327.2808408,0.00107123,30]
[426427116,1782376287000,-151.0,0.00107123,30]
[426427114,1782376287000,-151.0,0.00107123,30]
[426427117,1782376287000,-151.0,0.00107123,30]
[426427111,1782376287000,-151.9597447,0.00107123,30]
[426427112,1782376287000,-151.0,0.00107123,30]
[426427118,1782376287000,-151.0,0.00107123,30]
[426427120,1782376287000,-151.0,0.00107123,30]
[426427121,1782376287000,-327.280841,0.00107123,30]
[426427122,1782376287000,-151.0,0.00107123,30]
[426427125,1782376287000,-327.2808408,0.00107123,30]
[426427119,1782376287000,-327.2808408,0.00107123,30]
[426427123,1782376287000,-151.0,0.00107123,30]
[426427135,1782376287000,-151.0,0.00107123,30]
[426427132,1782376287000,-151.0,0.00107123,30]
[426427133,1782376287000,-327.2808408,0.00107123,30]
[426427130,1782376287000,-151.0,0.00107123,30]
[426427129,1782376287000,-151.0,0.00107123,30]
[426427134,1782376287000,-458.4896001,0.00107123,30]
[426427127,1782376287000,-151.0,0.00107123,30]
[426427126,1782376287000,-151.0,0.00107123,30]
[426427128,1782376287000,-327.2808408,0.00107123,30]
[426427124,1782376287000,-151.0,0.00107123,30]
[426427131,1782376287000,-151.0,0.00107123,30]
[426427204,1782376288000,-458.4896001,0.00119945,30]
[426427203,1782376288000,-458.4896001,0.00119945,30]
[426427201,1782376288000,-458.4896001,0.00119945,30]
[426427206,1782376288000,-458.8391934,0.00119945,30]
[426427202,1782376288000,-458.4896001,0.00119945,30]
[426427200,1782376288000,-458.4896001,0.00119945,30]
[426427199,1782376288000,-458.4896001,0.00119945,30]
[426427196,1782376288000,-458.4896001,0.00119945,30]
[426427207,1782376288000,-458.4896001,0.00119945,30]
[426427195,1782376288000,-458.4896001,0.00119945,30]
[426427197,1782376288000,-327.2808408,0.00119945,30]
[426427198,1782376288000,-458.4896001,0.00119945,30]
[426427205,1782376288000,-458.4896001,0.00119945,30]
[426427214,1782376288000,-271.266276,0.0011999,120]
[426427210,1782376288000,-458.4896001,0.00119945,30]
[426427219,1782376288000,-421.220042,0.0011999,120]
[426427209,1782376288000,-458.4896001,0.00119945,30]
[426427215,1782376288000,-271.266276,0.0011999,120]
[426427218,1782376288000,-421.220042,0.0011999,120]
[426427217,1782376288000,-421.220042,0.0011999,120]
[426427220,1782376288000,-421.220042,0.0011999,120]
[426427213,1782376288000,-271.266276,0.0011999,120]
[426427211,1782376288000,-157975.021928,0.0011999,120]
[426427212,1782376288000,-15383.98423051,0.0011999,120]
[426427216,1782376288000,-271.266276,0.0011999,120]
[426427192,1782376288000,-458.4896001,0.00119945,30]
[426427208,1782376288000,-285.340812,0.00119945,30]
[426427191,1782376288000,-458.4896001,0.00119945,30]
[426427166,1782376288000,-458.4896001,0.00107945,30]
[426427194,1782376288000,-458.4896001,0.00119945,30]
[426427167,1782376288000,-4110.76308009,0.00108657,28]
[426427164,1782376288000,-282.4836473,0.00107945,30]
[426427172,1782376288000,-152.12492349,0.00113109,71]
[426427165,1782376288000,-458.4896001,0.00107945,30]
[426427169,1782376288000,-220.0,0.0011,60]
[426427168,1782376288000,-1000.0,0.00109589,2]
[426427163,1782376288000,-327.2808408,0.00107945,30]
[426427171,1782376288000,-1000.0,0.00112328,2]
[426427170,1782376288000,-223.76,0.0011,120]
[426427174,1782376288000,-179.9640072,0.00114738,60]
[426427177,1782376288000,-400.0,0.00119,120]
[426427184,1782376288000,-327.2808408,0.00119945,30]
[426427173,1782376288000,-217.0,0.00114738,60]
[426427176,1782376288000,-1000.0,0.00117808,2]
[426427175,1782376288000,-1000.0,0.00115068,2]
[426427179,1782376288000,-800.0,0.001197,120]
[426427181,1782376288000,-694.0,0.001197,120]
[426427178,1782376288000,-4275.05462028,0.001197,120]
[426427182,1782376288000,-458.4896001,0.00119945,30]
[426427180,1782376288000,-800.0,0.001197,120]
[426427183,1782376288000,-458.4896001,0.00119945,30]
[426427222,1782376288000,-198.0,0.0011999,120]
[426427188,1782376288000,-458.4896001,0.00119945,30]
[426427187,1782376288000,-327.2808408,0.00119945,30]
[426427189,1782376288000,-327.2808408,0.00119945,30]
[426427186,1782376288000,-458.4896001,0.00119945,30]
[426427193,1782376288000,-457.4901666,0.00119945,30]
[426427190,1782376288000,-458.4896001,0.00119945,30]
[426427232,1782376288000,-327.2808408,0.00120274,30]
[426427185,1782376288000,-327.2808408,0.00119945,30]
[426427223,1782376288000,-2000.0,0.0012,120]
[426427255,1782376288000,-327.2808408,0.00120274,30]
[426427258,1782376288000,-458.4896001,0.00120274,30]
[426427266,1782376288000,-458.4896001,0.00120274,30]
[426427270,1782376288000,-327.2808408,0.00120274,30]
[426427263,1782376288000,-484.0826435,0.00120274,30]
[426427264,1782376288000,-327.2808408,0.00120274,30]
[426427267,1782376288000,-458.4896001,0.00120274,30]
[426427259,1782376288000,-458.4896001,0.00120274,30]
[426427265,1782376288000,-458.4896001,0.00120274,30]
[426427269,1782376288000,-458.4896001,0.00120274,30]
[426427261,1782376288000,-458.4896001,0.00120274,30]
[426427260,1782376288000,-327.2808408,0.00120274,30]
[426427262,1782376288000,-264.6354523,0.00120274,30]
[426427268,1782376288000,-327.2808408,0.00120274,30]
[426427272,1782376288000,-156.490508,0.00120767,120]
[426427274,1782376288000,-327.2808408,0.00121096,30]
[426427282,1782376288000,-458.4896001,0.00121096,30]
[426427271,1782376288000,-1000.0,0.00120547,2]
[426427283,1782376288000,-327.2808408,0.00121096,30]
[426427273,1782376288000,-458.4896001,0.00121096,30]
[426427275,1782376288000,-458.4896001,0.00121096,30]
[426427276,1782376288000,-327.2808408,0.00121096,30]
[426427280,1782376288000,-458.4896001,0.00121096,30]
[426427281,1782376288000,-327.2808408,0.00121096,30]
[426427277,1782376288000,-458.4896001,0.00121096,30]
[426427278,1782376288000,-458.4896001,0.00121096,30]
[426427279,1782376288000,-327.2808408,0.00121096,30]
[426427256,1782376288000,-327.2808408,0.00120274,30]
[426427254,1782376288000,-458.4896001,0.00120274,30]
[426427221,1782376288000,-151.0,0.0011999,120]
[426427253,1782376288000,-458.4896001,0.00120274,30]
[426427226,1782376288000,-327.2808408,0.00120274,30]
[426427228,1782376288000,-151.0,0.00120274,30]
[426427225,1782376288000,-151.1358281,0.00120274,30]
[426427227,1782376288000,-327.2808408,0.00120274,30]
[426427230,1782376288000,-151.0,0.00120274,30]
[426427231,1782376288000,-327.2808408,0.00120274,30]
[426427229,1782376288000,-327.2808408,0.00120274,30]
[426427234,1782376288000,-327.2808408,0.00120274,30]
[426427241,1782376288000,-327.2808408,0.00120274,30]
[426427233,1782376288000,-327.2808408,0.00120274,30]
[426427243,1782376288000,-458.4896001,0.00120274,30]
[426427236,1782376288000,-327.2808408,0.00120274,30]
[426427237,1782376288000,-327.2808408,0.00120274,30]
[426427224,1782376288000,-4000.0,0.0012,120]
[426427239,1782376288000,-326.365657,0.00120274,30]
[426427235,1782376288000,-327.2808408,0.00120274,30]
[426427252,1782376288000,-327.2808408,0.00120274,30]
[426427248,1782376288000,-458.4896001,0.00120274,30]
[426427249,1782376288000,-327.2808408,0.00120274,30]
[426427251,1782376288000,-458.4896001,0.00120274,30]
[426427247,1782376288000,-327.2808408,0.00120274,30]
[426427257,1782376288000,-458.4896001,0.00120274,30]
[426427246,1782376288000,-458.4896001,0.00120274,30]
[426427245,1782376288000,-323.4869483,0.00120274,30]
[426427242,1782376288000,-327.2808408,0.00120274,30]
[426427244,1782376288000,-331.3665403,0.00120274,30]
[426427250,1782376288000,-327.2808408,0.00120274,30]
[426427240,1782376288000,-327.2808408,0.00120274,30]
[426427238,1782376288000,-327.2808408,0.00120274,30]
[426427292,1782376289000,-2000.0,0.00121314,2]
[426427290,1782376289000,-2000.0,0.00121314,2]
[426427289,1782376289000,-2000.0,0.00121314,2]
[426427286,1782376289000,-151.0,0.00121096,120]
[426427287,1782376289000,-152.12492349,0.00121199,74]
[426427291,1782376289000,-2000.0,0.00121314,2]
[426427284,1782376289000,-458.4896001,0.00121096,30]
[426427296,1782376289000,-2000.0,0.00121314,2]
[426427295,1782376289000,-2000.0,0.00121314,2]
[426427288,1782376289000,-2000.0,0.00121314,2]
[426427293,1782376289000,-2000.0,0.00121314,2]
[426427302,1782376289000,-32670.94168275,0.001232,7]
[426427298,1782376289000,-2000.0,0.00121314,2]
[426427300,1782376289000,-755.231339,0.00122,120]
[426427301,1782376289000,-588.14569493,0.0012319,120]
[426427297,1782376289000,-2000.0,0.00121314,2]
[426427299,1782376289000,-913.0,0.00121314,2]
[426427304,1782376289000,164.0,0.00028131,120]
[426427305,1782376289000,164.0,0.00029131,120]
[426427306,1782376289000,164.0,0.00030131,120]
[426427308,1782376289000,167.06722119,0.00027131,120]
[426427307,1782376289000,880.4869,0.00030137,30]
[426427285,1782376289000,-458.4896001,0.00121096,30]
[426427294,1782376289000,-2000.0,0.00121314,2]
[426427303,1782376289000,164.0,0.00027131,120]
[426427314,1782376369000,156.0,0.00027131,120]
[426427315,1782376371000,156.0,0.00028131,120]
[426427316,1782376372000,156.0,0.00029131,120]
[426427317,1782376373000,156.0,0.00030131,120]
[426427318,1782376379000,156.0,0.00023565,30]
[426427319,1782376380000,156.0,0.00024565,30]
[426427320,1782376381000,156.0,0.00025565,30]
[426427321,1782376383000,156.0,0.00026565,30]
[426427322,1782376384000,156.0,0.00027565,30]
[426427323,1782376385000,156.0,0.00028565,30]
[426427324,1782376396000,-153.0,0.00016688,7]
[426427325,1782376396000,156.0,0.00029565,30]
[426427328,1782376413000,-1726.4333253,0.00016361,7]
[426427329,1782376447000,194.90560674,0.000256,30]
[426427343,1782376873000,417.15472785,0.00027412,30]
[426427347,1782377154000,165.04336671,0.00027412,120]
[426427350,1782377276000,156.0,0.00027412,120]
[426427351,1782377277000,156.0,0.00028412,120]
[426427352,1782377278000,156.0,0.00029412,120]
[426427353,1782377285000,156.0,0.00023706,30]
[426427354,1782377286000,160.93019287,0.00024706,30]
[426427445,1782377441000,-175.47256241,0.00016361,2]
[426427444,1782377441000,-0.80718408,0.00016361,7]
[426427446,1782377441000,-345.28666506,0.00016361,7]
[426427447,1782377441000,-172.36,0.00016438,2]
[426427448,1782377441000,-211.2025605,0.00016588,2]
[426427450,1782377441000,-227.82620679,0.00016688,7]
[426427452,1782377441000,-1727.24050938,0.00016688,7]
[426427453,1782377441000,-345.28666506,0.00016688,7]
[426427449,1782377441000,-300.0,0.00016687,2]
[426427454,1782377441000,-760.60498415,0.00017179,2]
[426427455,1782377441000,-1727.24050938,0.00017179,7]
[426427459,1782377441000,-316.76031269,0.0001767,7]
[426427458,1782377441000,-323.89727788,0.0001767,7]
[426427456,1782377441000,-3.74063461,0.00017179,7]
[426427457,1782377441000,-341.54603045,0.00017179,7]
[426427451,1782377441000,-215.93151858,0.00016688,7]
[426427504,1782377444000,-160.0,0.00028,10]
[426427493,1782377444000,-500.0,0.00026991,2]
[426427494,1782377444000,-160.0,0.00027,7]
[426427492,1782377444000,-160.0,0.00026991,2]
[426427490,1782377444000,-160.0,0.00026991,2]
[426427491,1782377444000,-160.0,0.00026991,2]
[426427489,1782377444000,-1755.66843836,0.00025824,2]
[426427488,1782377444000,-6077.97057854,0.00025824,2]
[426427481,1782377444000,-345.28666506,0.0001767,7]
[426427487,1782377444000,-302.3463376,0.00025823,2]
[426427485,1782377444000,-250.0,0.00021618,2]
[426427483,1782377444000,-345.28666506,0.00018324,7]
[426427482,1782377444000,-1727.2405094,0.00018324,7]
[426427484,1782377444000,-745.4895825,0.00020817,2]
[426427480,1782377444000,-1410.48019669,0.0001767,7]
[426427497,1782377444000,-160.0,0.00027,3]
[426427486,1782377444000,-264.7123066,0.00024112,4]
[426427495,1782377444000,-160.0,0.00027,3]
[426427507,1782377444000,-156.0,0.00030412,120]
[426427505,1782377444000,-160.0,0.00028,10]
[426427496,1782377444000,-160.0,0.00027,7]
[426427513,1782377444000,-252.75957803,0.0003385,2]
[426427517,1782377444000,-106.77582857,0.0003398,2]
[426427515,1782377444000,-256.47290813,0.0003385,2]
[426427514,1782377444000,-153.381134,0.0003385,2]
[426427510,1782377444000,-156.0,0.00032412,120]
[426427509,1782377444000,-276.4,0.000324,20]
[426427516,1782377444000,-423.32417825,0.0003398,2]
[426427512,1782377444000,-297.76056021,0.00033573,2]
[426427508,1782377444000,-156.0,0.00031412,120]
[426427511,1782377444000,-156.0,0.00033412,120]
[426427499,1782377444000,-500.0,0.00027265,2]
[426427500,1782377444000,-170.95170545,0.00027412,2]
[426427502,1782377444000,-500.0,0.00027813,2]
[426427498,1782377444000,-160.0,0.00027,3]
[426427503,1782377444000,-160.0,0.00028,10]
[426427506,1782377444000,-194.65,0.00029037,2]
[426427501,1782377444000,-500.0,0.00027539,2]
[426427538,1782377447000,-1841.0,0.00034392,2]
[426427550,1782377447000,-242.12,0.0004539,30]
[426427548,1782377447000,-348.65,0.0004539,30]
[426427549,1782377447000,-290.55,0.0004539,30]
[426427547,1782377447000,-418.39,0.0004539,30]
[426427545,1782377447000,-602.48,0.0004539,30]
[426427546,1782377447000,-502.06,0.0004539,30]
[426427544,1782377447000,-722.97,0.0004539,30]
[426427536,1782377447000,-306.76226801,0.00034261,2]
[426427533,1782377447000,-271.27074757,0.0003398,2]
[426427542,1782377447000,-214.954,0.00040392,2]
[426427540,1782377447000,-1420.0,0.00034392,2]
[426427543,1782377447000,-645.61,0.0004539,30]
[426427539,1782377447000,-1622.112,0.00034392,2]
[426427537,1782377447000,-512.94581625,0.00034261,2]
[426427541,1782377447000,-1420.0,0.00037392,2]
[426427534,1782377447000,-595.52112043,0.00034261,2]
[426427554,1782377447000,-317.73157168,0.00045399,120]
[426427532,1782377447000,-221.04643444,0.0003398,2]
[426427535,1782377447000,-505.51915606,0.00034261,2]
[426427555,1782377447000,-500.0,0.00045399,120]
[426427553,1782377447000,-840.72,0.0004539,30]
[426427552,1782377447000,-168.14,0.0004539,30]
[426427574,1782377447000,-11176.50064615,0.000454,2]
[426427576,1782377447000,-2230.69998992,0.000454,2]
[426427573,1782377447000,-500.0,0.00045399,120]
[426427572,1782377447000,-300.0,0.00045399,120]
[426427575,1782377447000,-29082.77046072,0.000454,2]
[426427570,1782377447000,-500.0,0.00045399,120]
[426427571,1782377447000,-500.0,0.00045399,120]
[426427566,1782377447000,-500.0,0.00045399,120]
[426427567,1782377447000,-500.0,0.00045399,120]
[426427560,1782377447000,-500.0,0.00045399,120]
[426427564,1782377447000,-500.0,0.00045399,120]
[426427562,1782377447000,-500.0,0.00045399,120]
[426427565,1782377447000,-500.0,0.00045399,120]
[426427563,1782377447000,-500.0,0.00045399,120]
[426427561,1782377447000,-500.0,0.00045399,120]
[426427569,1782377447000,-500.0,0.00045399,120]
[426427568,1782377447000,-500.0,0.00045399,120]
[426427557,1782377447000,-500.0,0.00045399,120]
[426427558,1782377447000,-213.37765514,0.00045399,120]
[426427559,1782377447000,-500.0,0.00045399,120]
[426427556,1782377447000,-500.0,0.00045399,120]
[426427551,1782377447000,-201.77,0.0004539,30]
[426427594,1782377847000,912.0,0.00027412,30]
[426427596,1782377858000,532.5699982,0.0001,2]
[426427599,1782377861000,14996.16156365,0.00012,2]
[426427621,1782378454000,-2402.74747018,0.000118,5]
[426427620,1782378454000,-300.0,0.00011799,2]
[426427619,1782378454000,-156.0,0.00011699,2]
[426427618,1782378454000,-321.0,0.000116,2]
[426427637,1782378547000,-500.0,0.00011994,2]
[426427635,1782378547000,-500.0,0.00011994,2]
[426427636,1782378547000,-500.0,0.00011994,2]
[426427634,1782378547000,-500.0,0.00011994,2]
[426427633,1782378547000,-500.0,0.00011994,2]
[426427632,1782378547000,-500.0,0.00011994,2]
[426427631,1782378547000,-500.0,0.00011994,2]
[426427628,1782378547000,-500.0,0.00011994,2]
[426427630,1782378547000,-500.0,0.00011994,2]
[426427627,1782378547000,-500.0,0.00011994,2]
[426427626,1782378547000,-500.0,0.00011994,2]
[426427625,1782378547000,-500.0,0.00011994,2]
[426427624,1782378547000,-500.0,0.00011994,2]
[426427641,1782378547000,-431.57204942,0.00011994,2]
[426427622,1782378547000,-8543.46254508,0.000118,5]
[426427629,1782378547000,-500.0,0.00011994,2]
[426427639,1782378547000,-500.0,0.00011994,2]
[426427623,1782378547000,-2884.78218798,0.00011894,2]
[426427642,1782378547000,-500.0,0.00011994,2]
[426427640,1782378547000,-500.0,0.00011994,2]
[426427659,1782378547000,300.0,0.0003,120]
[426427658,1782378547000,-488.01394522,0.00011994,2]
[426427657,1782378547000,-500.0,0.00011994,2]
[426427656,1782378547000,-500.0,0.00011994,2]
[426427655,1782378547000,-500.0,0.00011994,2]
[426427654,1782378547000,-500.0,0.00011994,2]
[426427652,1782378547000,-500.0,0.00011994,2]
[426427653,1782378547000,-500.0,0.00011994,2]
[426427638,1782378547000,-500.0,0.00011994,2]
[426427650,1782378547000,-500.0,0.00011994,2]
[426427644,1782378547000,-500.0,0.00011994,2]
[426427643,1782378547000,-500.0,0.00011994,2]
[426427646,1782378547000,-500.0,0.00011994,2]
[426427651,1782378547000,-500.0,0.00011994,2]
[426427648,1782378547000,-500.0,0.00011994,2]
[426427649,1782378547000,-500.0,0.00011994,2]
[426427645,1782378547000,-500.0,0.00011994,2]
[426427647,1782378547000,-500.0,0.00011994,2]
[426427677,1782378569000,-500.0,0.00011994,2]
[426427696,1782378569000,-500.0,0.00011994,2]
[426427694,1782378569000,-500.0,0.00011994,2]
[426427693,1782378569000,-500.0,0.00011994,2]
[426427690,1782378569000,-500.0,0.00011994,2]
[426427692,1782378569000,-500.0,0.00011994,2]
[426427691,1782378569000,-500.0,0.00011994,2]
[426427688,1782378569000,-500.0,0.00011994,2]
[426427689,1782378569000,-500.0,0.00011994,2]
[426427687,1782378569000,-500.0,0.00011994,2]
[426427685,1782378569000,-500.0,0.00011994,2]
[426427684,1782378569000,-500.0,0.00011994,2]
[426427683,1782378569000,-500.0,0.00011994,2]
[426427680,1782378569000,-500.0,0.00011994,2]
[426427682,1782378569000,-500.0,0.00011994,2]
[426427681,1782378569000,-500.0,0.00011994,2]
[426427678,1782378569000,-500.0,0.00011994,2]
[426427679,1782378569000,-182.76024899,0.00011994,2]
[426427676,1782378569000,-11.98605478,0.00011994,2]
[426427695,1782378569000,-500.0,0.00011994,2]
[426427686,1782378569000,-500.0,0.00011994,2]
[426427697,1782378569000,-500.0,0.00011994,2]
[426427698,1782378569000,-500.0,0.00011994,2]
[426427718,1782378569000,-500.0,0.00011994,2]
[426427719,1782378569000,-500.0,0.00011994,2]
[426427717,1782378569000,-500.0,0.00011994,2]
[426427715,1782378569000,-500.0,0.00011994,2]
[426427716,1782378569000,-500.0,0.00011994,2]
[426427713,1782378569000,-500.0,0.00011994,2]
[426427714,1782378569000,-500.0,0.00011994,2]
[426427712,1782378569000,-500.0,0.00011994,2]
[426427699,1782378569000,-500.0,0.00011994,2]
[426427711,1782378569000,-500.0,0.00011994,2]
[426427710,1782378569000,-500.0,0.00011994,2]
[426427709,1782378569000,-500.0,0.00011994,2]
[426427705,1782378569000,-500.0,0.00011994,2]
[426427707,1782378569000,-500.0,0.00011994,2]
[426427706,1782378569000,-500.0,0.00011994,2]
[426427703,1782378569000,-500.0,0.00011994,2]
[426427704,1782378569000,-500.0,0.00011994,2]
[426427702,1782378569000,-500.0,0.00011994,2]
[426427700,1782378569000,-500.0,0.00011994,2]
[426427701,1782378569000,-500.0,0.00011994,2]
[426427708,1782378569000,-500.0,0.00011994,2]
[426427721,1782378570000,-320.16346018,0.00011994,2]
[426427720,1782378570000,-500.0,0.00011994,2]
[426427722,1782378570000,-500.0,0.00011994,2]
[426427724,1782378570000,-500.0,0.00011994,2]
[426427723,1782378570000,-500.0,0.00011994,2]
[426427725,1782378570000,-500.0,0.00011994,2]
[426427727,1782378570000,-500.0,0.00011994,2]
[426427729,1782378570000,-128.29650167,0.00012,2]
[426427728,1782378570000,-500.0,0.00011994,2]
[426427726,1782378570000,-500.0,0.00011994,2]
[426427754,1782378631000,-3010.4685641,0.00012,2]
[426427765,1782378631000,-1127.35033709,0.00013,2]
[426427768,1782378631000,-171.21406725,0.00013365,14]
[426427756,1782378631000,-1272.96804881,0.00012,2]
[426427762,1782378631000,-3441.992031,0.00012,2]
[426427763,1782378631000,-831.44801858,0.00012,2]
[426427770,1782378631000,-503.21960043,0.00013698,2]
[426427783,1782378631000,-229.37586717,0.00022236,2]
[426427784,1782378631000,-118.10638319,0.00022236,2]
[426427781,1782378631000,-617.58342075,0.00018324,7]
[426427748,1782378631000,-3526.88312339,0.00012,2]
[426427788,1782378631000,-2899.3436504,0.00023821,2]
[426427772,1782378631000,-617.58342072,0.00016361,7]
[426427773,1782378631000,-617.58342072,0.00016688,7]
[426427790,1782378631000,-160.0,0.00027006,2]
[426427775,1782378631000,-156.422,0.00016861,2]
[426427777,1782378631000,-617.58342072,0.00017179,7]
[426427779,1782378631000,-617.58342072,0.0001767,7]
[426427792,1782378631000,-160.0,0.00027006,2]
[426427796,1782378631000,-681.32124335,0.00027831,2]
[426427794,1782378631000,-499.999999,0.0002739,2]
[426427798,1782378631000,-540.13363276,0.00027831,2]
[426427786,1782378631000,-71.50061681,0.00022236,2]
[426427934,1782378640000,-150.0,0.00037392,2]
[426427935,1782378640000,-300.0,0.0004,120]
[426427941,1782378640000,-175.32724928,0.00045171,120]
[426427946,1782378640000,-156.587,0.00045171,120]
[426427954,1782378640000,-336.93644534,0.00045171,120]
[426427960,1782378640000,-173.20740938,0.00045171,120]
[426427952,1782378640000,-174.61919141,0.00045171,120]
[426427958,1782378640000,-181.08010149,0.00045171,120]
[426427950,1782378640000,-168.3888056,0.00045171,120]
[426427940,1782378640000,-300.0,0.00044,120]
[426427944,1782378640000,-151.0,0.00045171,120]
[426427938,1782378640000,-2884.78218797,0.00043767,28]
[426427929,1782378640000,-208.97333333,0.00034683,2]
[426427925,1782378640000,-300.0,0.00034391,2]
[426427923,1782378640000,-417.94666667,0.00034272,2]
[426427921,1782378640000,-300.0,0.00034,120]
[426427931,1782378640000,-199.9999997,0.00035,7]
[426427919,1782378640000,-626.92,0.0003386,2]
[426427917,1782378640000,-835.89333333,0.00033243,2]
[426427915,1782378640000,-1044.86666667,0.00032318,2]
[426427913,1782378640000,-191.45564568,0.00027831,2]
[426427905,1782378640000,-594.82166618,0.00027831,2]
[426427881,1782378640000,-534.05,0.00027831,2]
[426427878,1782378640000,-343.0,0.00027831,2]
[426427927,1782378640000,-241.648,0.00034392,2]
[426427948,1782378640000,-162.380719,0.00045171,120]
[426427963,1782378640000,-192.76827359,0.00045171,120]
[426427956,1782378640000,-173.20740938,0.00045171,120]
[426427962,1782378640000,-151.0,0.00045171,120]
[426428007,1782378640000,-515.40597489,0.00049315,120]
[426428009,1782378640000,-515.40597491,0.00049315,120]
[426428005,1782378640000,-515.40597489,0.00049315,120]
[426428003,1782378640000,-515.40597489,0.00049315,120]
[426428014,1782378640000,-188.37961712,0.00049315,120]
[426428012,1782378640000,-288.10983032,0.00049315,120]
[426428001,1782378640000,-515.40597489,0.00049315,120]
[426427998,1782378640000,-317.90367823,0.00049315,120]
[426427996,1782378640000,-197.50229666,0.00049315,120]
[426427994,1782378640000,-515.40597489,0.00049315,120]
[426427992,1782378640000,-515.40597489,0.00049315,120]
[426427967,1782378640000,-151.0,0.00045171,120]
[426427985,1782378640000,-381.93400441,0.00049315,120]
[426427987,1782378640000,-364.76033531,0.00049315,120]
[426427982,1782378640000,-707.15423955,0.00047758,6]
[426427984,1782378640000,-591.4159419,0.00049215,21]
[426427972,1782378640000,-151.0,0.00045171,120]